[Event "Mistrovství Čech mládeže 2023 - HD12"]
[Site "Harrachov, Czech Republic"]
[Date "2023.10.26"]
[Round "7.14"]
[White "Koupil, Štěpán"]
[Black "Kreuzman, Daniel"]
[Result "1-0"]
[TimeControl "90m + 30s"]
[WhiteElo "1467"]
[BlackElo "1169"]

1. e4 {[%clk 01:30:57]} {[%emt 00:00:02]} c5 {[%clk 01:30:54]} {[%emt
00:00:07]} 2. Nf3 {[%clk 01:31:17]} {[%emt 00:00:09]} Nc6 {[%clk 01:31:13]}
{[%emt 00:00:11]} 3. d4 {[%clk 01:31:35]} {[%emt 00:00:12]} cxd4 {[%clk
01:31:32]} {[%emt 00:00:11]} 4. Nxd4 {[%clk 01:31:50]} {[%emt 00:00:15]} g6
{[%clk 01:31:54]} {[%emt 00:00:09]} 5. Be3 {[%clk 01:31:30]} {[%emt 00:00:49]}
Bg7 {[%clk 01:32:09]} {[%emt 00:00:15]} 6. Nc3 {[%clk 01:31:37]} {[%emt
00:00:23]} Nf6 {[%clk 01:32:31]} {[%emt 00:00:08]} 7. Be2 {[%clk 01:31:44]}
{[%emt 00:00:22]} O-O {[%clk 01:32:46]} {[%emt 00:00:16]} 8. O-O {[%clk
01:32:01]} {[%emt 00:00:13]} d5 {[%clk 01:33:01]} {[%emt 00:00:15]} 9. exd5
{[%clk 01:31:40]} {[%emt 00:00:52]} Nxd5 {[%clk 01:33:24]} {[%emt 00:00:06]} 10.
Nxd5 {[%clk 01:31:42]} {[%emt 00:00:28]} Qxd5 {[%clk 01:33:46]} {[%emt
00:00:09]} 11. Bf3 {[%clk 01:31:49]} {[%emt 00:00:22]} Qd6 {[%clk 01:32:11]}
{[%emt 00:02:05]} 12. Nxc6 {[%clk 01:31:08]} {[%emt 00:01:11]} Qxd1 {[%emt
00:02:07]} 13. Nxe7+ {[%clk 01:30:40]} {[%emt 00:00:55]} Kh8 {[%clk 01:30:34]}
{[%emt 00:00:33]} 14. Raxd1 {[%clk 01:30:44]} {[%emt 00:00:26]} Be6 {[%clk
01:24:06]} {[%emt 00:06:58]} 15. b3 {[%clk 01:29:30]} {[%emt 00:01:44]} Rfe8
{[%clk 01:22:39]} {[%emt 00:01:57]} 16. Nd5 {[%clk 01:28:29]} {[%emt 00:01:31]}
Rac8 {[%clk 01:22:29]} {[%emt 00:00:40]} 17. c4 {[%clk 01:28:22]} {[%emt
00:00:37]} b6 {[%clk 01:21:34]} {[%emt 00:01:25]} 18. Nf4 {[%clk 01:25:19]}
{[%emt 00:03:33]} Bf5 {[%clk 01:20:42]} {[%emt 00:01:22]} 19. Bd4 {[%clk
01:21:53]} {[%emt 00:03:56]} Rcd8 {[%clk 01:17:55]} {[%emt 00:03:17]} 20. Bxg7+
{[%clk 01:20:57]} {[%emt 00:01:26]} Kxg7 {[%clk 01:18:23]} {[%emt 00:00:01]} 21.
Rxd8 {[%clk 01:21:08]} {[%emt 00:00:20]} Rxd8 {[%clk 01:18:43]} {[%emt
00:00:10]} 22. Rd1 {[%clk 01:21:27]} {[%emt 00:00:10]} Re8 {[%clk 01:18:53]}
{[%emt 00:00:21]} 23. Kf1 {[%clk 01:20:12]} {[%emt 00:01:41]} Bc2 {[%clk
01:17:42]} {[%emt 00:01:44]} 24. Rd2 {[%clk 01:18:45]} {[%emt 00:01:58]} Bf5
{[%clk 01:17:55]} {[%emt 00:00:16]} 25. Re2 {[%clk 01:18:08]} {[%emt 00:01:08]}
Bd3 {[%clk 01:18:01]} {[%emt 00:00:25]} 26. Nxd3 {[%clk 01:18:26]} {[%emt
00:00:11]} 1-0

[Event "Mistrovství Čech mládeže 2023 - HD12"]
[Site "Harrachov, Czech Republic"]
[Date "2023.10.26"]
[Round "7.16"]
[White "Křivka, Lukáš"]
[Black "Vlček, Vítězslav"]
[Result "1/2-1/2"]
[TimeControl "90m + 30s"]
[WhiteElo "1386"]
[BlackElo "1120"]

1. d4 {[%clk 01:30:44]} {[%emt 00:00:15]} d5 {[%clk 01:30:34]} {[%emt
00:00:27]} 2. Nc3 {[%clk 01:30:29]} {[%emt 00:00:44]} Nf6 {[%clk 01:29:00]}
{[%emt 00:02:04]} 3. Bf4 {[%clk 01:30:27]} {[%emt 00:00:31]} a6 {[%clk
01:19:37]} {[%emt 00:09:54]} 4. e3 {[%clk 01:29:18]} {[%emt 00:01:38]} Bf5
{[%clk 01:15:19]} {[%emt 00:04:49]} 5. Bd3 {[%clk 01:27:35]} {[%emt 00:02:13]}
Bxd3 {[%clk 01:12:29]} {[%emt 00:03:20]} 6. cxd3 {[%clk 01:26:35]} {[%emt
00:01:29]} e6 {[%clk 01:09:47]} {[%emt 00:03:14]} 7. Nf3 {[%clk 01:24:16]}
{[%emt 00:02:48]} Bd6 {[%clk 01:09:30]} {[%emt 00:00:47]} 8. Bxd6 {[%clk
01:22:45]} {[%emt 00:02:00]} cxd6 {[%clk 01:08:49]} {[%emt 00:01:11]} 9. O-O
{[%clk 01:23:01]} {[%emt 00:00:13]} O-O {[%clk 01:09:13]} {[%emt 00:00:07]} 10.
Re1 {[%clk 01:21:26]} {[%emt 00:02:04]} Nc6 {[%clk 01:04:18]} {[%emt 00:05:26]}
11. Qb3 {[%clk 01:16:20]} {[%emt 00:05:36]} Qd7 {[%clk 00:59:36]} {[%emt
00:05:13]} 12. Na4 {[%clk 01:10:34]} {[%emt 00:06:15]} Na5 {[%clk 00:48:56]}
{[%emt 00:11:10]} 13. Qb4 {[%clk 01:08:40]} {[%emt 00:02:24]} Nc6 {[%clk
00:47:16]} {[%emt 00:02:10]} 14. Qd2 {[%clk 01:07:04]} {[%emt 00:02:00]} Qd8
{[%clk 00:45:27]} {[%emt 00:02:25]} 15. Rac1 {[%clk 01:02:20]} {[%emt
00:05:13]} Rc8 {[%clk 00:43:08]} {[%emt 00:02:50]} 16. Rc2 {[%clk 00:53:43]}
1/2-1/2

[Event "Mistrovství Čech mládeže 2023 - HD12"]
[Site "Harrachov, Czech Republic"]
[Date "2023.10.26"]
[Round "7.17"]
[White "Vorlík, Jáchym"]
[Black "Ličková, Anna"]
[Result "0-1"]
[TimeControl "90m + 30s"]
[WhiteElo "1210"]
[BlackElo "1366"]

1. e4 {[%clk 01:30:56]} {[%emt 00:00:03]} e5 {[%clk 01:30:30]} {[%emt
00:00:30]} 2. Nf3 {[%clk 01:31:11]} {[%emt 00:00:15]} Nc6 {[%clk 01:30:44]}
{[%emt 00:00:16]} 3. Bc4 {[%clk 01:31:25]} {[%emt 00:00:16]} Bc5 {[%clk
01:30:42]} {[%emt 00:00:33]} 4. c3 {[%clk 01:31:00]} {[%emt 00:00:55]} Nf6
{[%clk 01:30:44]} {[%emt 00:00:28]} 5. d4 {[%clk 01:31:03]} {[%emt 00:00:26]}
exd4 {[%clk 01:31:08]} {[%emt 00:00:06]} 6. O-O {[%clk 01:31:09]} {[%emt
00:00:24]} d6 {[%clk 01:27:44]} {[%emt 00:03:54]} 7. cxd4 {[%clk 01:30:57]}
{[%emt 00:00:42]} Bb6 {[%clk 01:26:16]} {[%emt 00:01:58]} 8. d5 {[%clk
01:30:51]} {[%emt 00:00:36]} Ne7 {[%clk 01:19:57]} {[%emt 00:06:49]} 9. Nc3
{[%clk 01:30:14]} {[%emt 00:01:07]} Ng6 {[%clk 01:16:10]} {[%emt 00:04:17]} 10.
h3 {[%clk 01:29:07]} {[%emt 00:01:38]} O-O {[%clk 01:14:25]} {[%emt 00:02:14]}
11. Re1 {[%clk 01:26:40]} {[%emt 00:02:57]} Re8 {[%clk 01:13:08]} {[%emt
00:01:48]} 12. Qd3 {[%clk 01:21:06]} {[%emt 00:06:04]} Bd7 {[%clk 01:00:52]}
{[%emt 00:12:45]} 13. Be3 {[%clk 01:19:21]} {[%emt 00:02:15]} Nh5 {[%clk
00:48:48]} {[%emt 00:12:34]} 14. Bg5 {[%clk 01:17:25]} {[%emt 00:02:27]} f6
{[%clk 00:44:16]} {[%emt 00:05:01]} 15. Bd2 {[%clk 01:15:55]} {[%emt 00:02:00]}
Nhf4 {[%clk 00:43:09]} {[%emt 00:01:37]} 16. Qc2 {[%clk 01:15:05]} {[%emt
00:01:20]} Qe7 {[%clk 00:35:52]} {[%emt 00:07:47]} 17. Qc1 {[%clk 01:13:51]}
{[%emt 00:01:45]} Ne5 {[%clk 00:30:52]} {[%emt 00:05:30]} 18. Nxe5 {[%clk
01:12:10]} {[%emt 00:02:11]} fxe5 {[%clk 00:30:39]} {[%emt 00:00:42]} 19. Rf1
{[%clk 01:09:09]} {[%emt 00:03:31]} Nxh3+ {[%clk 00:13:24]} {[%emt 00:17:45]}
20. gxh3 {[%clk 01:06:08]} {[%emt 00:03:30]} Bxh3 {[%clk 00:13:50]} {[%emt
00:00:04]} 21. Re1 {[%clk 01:01:18]} {[%emt 00:05:19]} Qh4 {[%clk 00:13:37]}
{[%emt 00:00:44]} 0-1

[Event "Mistrovství Čech mládeže 2023 - HD12"]
[Site "Harrachov, Czech Republic"]
[Date "2023.10.26"]
[Round "7.18"]
[White "Kůsová, Nikola"]
[Black "Mauric, Jan"]
[Result "0-1"]
[TimeControl "90m + 30s"]
[WhiteElo "1324"]
[BlackElo "1260"]

1. e4 {[%clk 01:30:57]} {[%emt 00:00:01]} e6 {[%clk 01:30:53]} {[%emt
00:00:08]} 2. d4 {[%clk 01:31:16]} {[%emt 00:00:12]} b6 {[%clk 01:31:03]}
{[%emt 00:00:21]} 3. Nc3 {[%clk 01:31:36]} {[%emt 00:00:09]} Bb7 {[%clk
01:31:22]} {[%emt 00:00:11]} 4. Bd3 {[%clk 01:31:56]} {[%emt 00:00:09]} Bb4
{[%clk 01:29:45]} {[%emt 00:02:07]} 5. Bd2 {[%clk 01:28:58]} {[%emt 00:03:28]}
f5 {[%clk 01:27:20]} {[%emt 00:02:55]} 6. Nge2 {[%clk 01:22:55]} {[%emt
00:06:32]} Ne7 {[%clk 01:21:20]} {[%emt 00:06:30]} 7. a3 {[%clk 01:20:02]}
{[%emt 00:03:23]} Bxc3 {[%clk 01:21:39]} {[%emt 00:00:11]} 8. Nxc3 {[%clk
01:20:23]} {[%emt 00:00:10]} Nbc6 {[%clk 01:20:43]} {[%emt 00:01:26]} 9. Be3
{[%clk 01:17:51]} {[%emt 00:03:00]} O-O {[%clk 01:18:56]} {[%emt 00:02:18]} 10.
f3 {[%clk 01:13:15]} {[%emt 00:05:06]} fxe4 {[%clk 01:17:35]} {[%emt 00:01:51]}
11. fxe4 {[%clk 01:12:15]} {[%emt 00:01:30]} Ng6 {[%clk 01:13:14]} {[%emt
00:04:52]} 12. Qd2 {[%clk 01:09:55]} {[%emt 00:02:49]} e5 {[%clk 01:04:19]}
{[%emt 00:09:25]} 13. d5 {[%clk 01:06:08]} {[%emt 00:04:18]} Nd4 {[%clk
00:59:08]} {[%emt 00:05:40]} 14. Bc4 {[%clk 00:58:50]} {[%emt 00:07:47]} Qh4+
{[%clk 00:49:58]} {[%emt 00:09:42]} 15. Bf2 {[%clk 00:57:30]} {[%emt 00:01:50]}
Rxf2 {[%clk 00:47:51]} {[%emt 00:02:37]} 16. Qxf2 {[%clk 00:57:14]} {[%emt
00:00:45]} Nxc2+ {[%clk 00:48:14]} {[%emt 00:00:08]} 17. Ke2 {[%clk 00:57:21]}
{[%emt 00:00:22]} Qxf2+ {[%clk 00:47:17]} {[%emt 00:01:28]} 18. Kxf2 {[%clk
00:57:40]} {[%emt 00:00:11]} Nxa1 {[%clk 00:47:42]} {[%emt 00:00:04]} 19. Rxa1
{[%clk 00:57:54]} {[%emt 00:00:17]} Kf8 {[%clk 00:45:12]} {[%emt 00:03:00]} 20.
Ke3 {[%clk 00:56:33]} {[%emt 00:01:50]} Ke7 {[%clk 00:43:57]} {[%emt 00:01:45]}
21. Rf1 {[%clk 00:53:16]} {[%emt 00:03:47]} a6 {[%clk 00:41:45]} {[%emt
00:02:43]} 22. Rf3 {[%clk 00:48:10]} {[%emt 00:05:34]} Rf8 {[%clk 00:36:44]}
{[%emt 00:05:31]} 23. Rg3 {[%clk 00:43:34]} {[%emt 00:05:07]} d6 {[%clk
00:36:17]} {[%emt 00:00:58]} 24. Be2 {[%clk 00:43:16]} {[%emt 00:00:46]} Bc8
{[%clk 00:34:35]} {[%emt 00:02:13]} 25. h4 {[%clk 00:37:22]} {[%emt 00:06:24]}
Rf7 {[%clk 00:30:39]} {[%emt 00:04:27]} 26. Bh5 {[%clk 00:37:28]} {[%emt
00:00:23]} Rf6 {[%clk 00:30:33]} {[%emt 00:00:37]} 27. Be2 {[%clk 00:37:45]}
{[%emt 00:00:13]} Kf8 {[%clk 00:30:06]} {[%emt 00:00:57]} 28. h5 {[%clk
00:34:54]} {[%emt 00:03:21]} Nf4 {[%clk 00:29:44]} {[%emt 00:00:52]} 29. Bf3
{[%clk 00:33:07]} {[%emt 00:02:16]} Bd7 {[%clk 00:28:26]} {[%emt 00:01:48]} 30.
a4 {[%clk 00:31:26]} {[%emt 00:02:12]} Be8 {[%clk 00:27:17]} {[%emt 00:01:38]}
31. b3 {[%clk 00:25:49]} {[%emt 00:06:07]} Bxh5 {[%clk 00:27:02]} {[%emt
00:00:46]} 32. Bxh5 {[%clk 00:25:24]} {[%emt 00:00:54]} Nxh5 {[%clk 00:27:25]}
{[%emt 00:00:07]} 33. Rf3 {[%clk 00:21:57]} {[%emt 00:03:57]} Rxf3+ {[%clk
00:26:56]} {[%emt 00:00:59]} 34. Kxf3 {[%clk 00:22:19]} {[%emt 00:00:09]} Nf4
{[%clk 00:27:18]} {[%emt 00:00:08]} 35. g3 {[%clk 00:21:59]} {[%emt 00:00:49]}
Nd3 {[%clk 00:27:38]} {[%emt 00:00:10]} 36. Ke3 {[%clk 00:20:44]} {[%emt
00:01:45]} Nc5 {[%clk 00:26:07]} {[%emt 00:02:02]} 37. b4 {[%clk 00:19:10]}
{[%emt 00:02:04]} Nb3 {[%clk 00:26:19]} {[%emt 00:00:19]} 38. Ne2 {[%clk
00:18:02]} {[%emt 00:01:36]} a5 {[%clk 00:26:00]} {[%emt 00:00:50]} 39. b5
{[%clk 00:18:01]} {[%emt 00:00:32]} Nc5 {[%clk 00:26:18]} {[%emt 00:00:12]} 40.
Nc3 {[%clk 00:18:23]} {[%emt 00:00:07]} Kf7 {[%clk 00:26:37]} {[%emt 00:00:12]}
41. Kf3 {[%clk 00:17:51]} {[%emt 00:01:01]} h5 {[%clk 00:26:18]} {[%emt
00:00:49]} 42. Kg2 {[%clk 00:17:54]} {[%emt 00:00:26]} g5 {[%clk 00:25:29]}
{[%emt 00:01:20]} 43. Kh3 {[%clk 00:17:52]} {[%emt 00:00:31]} g4+ {[%emt
00:01:27]} 44. Kh4 {[%emt 00:00:03]} Kg6 45. Ne2 {[%emt 00:00:02]} Nxa4 46. Nc3
{[%emt 00:00:01]} Nc5 {[%emt 00:00:05]} 47. Na4 {[%emt 00:00:03]} Nxe4 {[%emt
00:00:04]} 48. Nc3 {[%emt 00:00:02]} Kf5 {[%emt 00:00:01]} 0-1

[Event "Mistrovství Čech mládeže 2023 - HD12"]
[Site "Harrachov, Czech Republic"]
[Date "2023.10.26"]
[Round "7.19"]
[White "Sehnoutka, Vít"]
[Black "Ježek, Jiří"]
[Result "0-1"]
[TimeControl "90m + 30s"]
[WhiteElo "1041"]
[BlackElo "1392"]

1. d4 {[%clk 01:30:50]} {[%emt 00:00:09]} Nf6 {[%clk 01:30:40]} {[%emt
00:00:21]} 2. Bf4 {[%clk 01:30:36]} {[%emt 00:00:44]} d5 {[%clk 01:30:45]}
{[%emt 00:00:24]} 3. e3 {[%clk 01:30:11]} {[%emt 00:00:56]} c5 {[%clk
01:30:31]} {[%emt 00:00:44]} 4. Nf3 {[%clk 01:27:21]} {[%emt 00:03:20]} Nc6
{[%clk 01:29:46]} {[%emt 00:01:15]} 5. c3 {[%clk 01:26:09]} {[%emt 00:01:41]}
Bf5 {[%clk 01:29:00]} {[%emt 00:01:16]} 6. Nbd2 {[%clk 01:24:00]} {[%emt
00:02:39]} e6 {[%clk 01:26:15]} {[%emt 00:03:16]} 7. Ne5 {[%clk 01:22:00]}
{[%emt 00:02:30]} Qb6 {[%clk 01:23:41]} {[%emt 00:03:03]} 8. Qb3 {[%clk
01:20:23]} {[%emt 00:02:07]} c4 {[%clk 01:22:54]} {[%emt 00:01:15]} 9. Qxb6
{[%clk 01:19:22]} {[%emt 00:01:33]} axb6 {[%clk 01:23:12]} {[%emt 00:00:13]} 10.
Ndf3 {[%clk 01:18:06]} {[%emt 00:01:46]} Be7 {[%clk 01:21:34]} {[%emt
00:02:08]} 11. Be2 {[%clk 01:16:20]} {[%emt 00:02:16]} O-O {[%clk 01:21:33]}
{[%emt 00:00:30]} 12. O-O {[%clk 01:15:23]} {[%emt 00:01:27]} h6 {[%clk
01:19:52]} {[%emt 00:02:11]} 13. b3 {[%clk 01:07:21]} {[%emt 00:08:33]} b5
{[%clk 01:16:35]} {[%emt 00:03:47]} 14. h3 {[%clk 01:05:26]} {[%emt 00:02:24]}
Ra3 {[%clk 01:11:58]} {[%emt 00:05:08]} 15. Rfd1 {[%clk 00:57:20]} {[%emt
00:08:35]} Rfa8 {[%clk 00:58:07]} {[%emt 00:14:22]} 16. bxc4 {[%clk 00:52:03]}
{[%emt 00:05:47]} bxc4 {[%clk 00:57:33]} {[%emt 00:01:04]} 17. Rd2 {[%clk
00:45:39]} {[%emt 00:06:54]} Na5 {[%clk 00:55:04]} {[%emt 00:03:00]} 18. Rc1
{[%clk 00:37:06]} {[%emt 00:09:01]} Nc6 {[%clk 00:52:14]} {[%emt 00:03:21]} 19.
Rb2 {[%clk 00:31:40]} {[%emt 00:05:56]} Na5 {[%clk 00:48:58]} {[%emt 00:03:46]}
20. Kh2 {[%clk 00:29:34]} {[%emt 00:02:35]} Ne4 {[%clk 00:45:50]} {[%emt
00:03:38]} 21. Bd1 {[%clk 00:19:47]} {[%emt 00:10:17]} Rxc3 {[%clk 00:38:41]}
{[%emt 00:07:39]} 22. Rxc3 {[%clk 00:19:41]} {[%emt 00:00:36]} Nxc3 {[%clk
00:39:03]} {[%emt 00:00:08]} 23. Bc2 {[%clk 00:19:30]} {[%emt 00:00:42]} Ba3
{[%clk 00:36:53]} {[%emt 00:02:40]} 0-1

[Event "Mistrovství Čech mládeže 2023 - HD12"]
[Site "Harrachov, Czech Republic"]
[Date "2023.10.26"]
[Round "7.20"]
[White "Zelenka, Tomáš"]
[Black "Kammová, Natálie"]
[Result "1-0"]
[TimeControl "90m + 30s"]
[WhiteElo "1281"]
[BlackElo "1045"]

1. e4 {[%clk 01:30:57]} {[%emt 00:00:02]} c6 {[%clk 01:30:44]} {[%emt
00:00:16]} 2. c4 {[%clk 01:30:55]} {[%emt 00:00:31]} d5 {[%clk 01:30:26]}
{[%emt 00:00:48]} 3. exd5 {[%clk 01:31:12]} {[%emt 00:00:14]} cxd5 {[%clk
01:30:33]} {[%emt 00:00:24]} 4. cxd5 {[%clk 01:31:32]} {[%emt 00:00:10]} Nf6
{[%clk 01:30:14]} {[%emt 00:00:49]} 5. Nc3 {[%clk 01:31:18]} {[%emt 00:00:42]}
Nxd5 {[%clk 01:30:13]} {[%emt 00:00:33]} 6. d4 {[%clk 01:31:20]} {[%emt
00:00:27]} Bf5 {[%clk 01:24:43]} {[%emt 00:06:00]} 7. Nxd5 {[%clk 01:26:52]}
{[%emt 00:04:59]} Qxd5 {[%clk 01:21:50]} {[%emt 00:03:23]} 8. Nf3 {[%clk
01:25:26]} {[%emt 00:01:54]} e6 {[%clk 01:21:44]} {[%emt 00:00:37]} 9. Bf4
{[%clk 01:24:52]} {[%emt 00:00:59]} Be7 {[%clk 01:10:46]} {[%emt 00:11:31]} 10.
Bxb8 {[%clk 01:24:13]} {[%emt 00:01:12]} Rxb8 {[%clk 01:10:50]} {[%emt
00:00:25]} 11. Qa4+ {[%clk 01:23:18]} {[%emt 00:01:24]} b5 {[%clk 01:07:43]}
{[%emt 00:03:39]} 12. Qxa7 {[%clk 01:22:15]} {[%emt 00:01:33]} Qe4+ {[%clk
01:07:03]} {[%emt 00:01:07]} 13. Be2 {[%clk 01:21:53]} {[%emt 00:00:54]} Bb4+
{[%clk 01:06:38]} {[%emt 00:00:56]} 14. Nd2 {[%clk 01:20:51]} {[%emt 00:01:29]}
O-O {[%clk 01:04:42]} {[%emt 00:02:28]} 15. a3 {[%clk 01:18:41]} {[%emt
00:02:41]} Ra8 {[%clk 01:04:11]} {[%emt 00:01:01]} 16. Qc7 {[%clk 01:17:54]}
{[%emt 00:01:10]} Rfc8 {[%clk 01:04:19]} {[%emt 00:00:28]} 17. Qe5 {[%clk
01:17:15]} {[%emt 00:01:06]} Qc2 {[%clk 01:04:21]} {[%emt 00:00:30]} 18. Rd1
{[%clk 01:17:09]} {[%emt 00:00:37]} Ba5 {[%clk 01:03:35]} {[%emt 00:01:12]} 19.
Qxb5 {[%clk 01:16:19]} {[%emt 00:01:22]} Rcb8 {[%clk 01:03:23]} {[%emt
00:00:45]} 20. Qc5 {[%clk 01:13:29]} {[%emt 00:03:18]} Qxb2 {[%clk 01:03:03]}
{[%emt 00:00:50]} 21. Qc1 {[%clk 01:13:17]} {[%emt 00:00:31]} Qxd4 {[%clk
01:02:46]} {[%emt 00:00:59]} 22. O-O {[%clk 01:12:54]} {[%emt 00:00:54]} Rc8
{[%clk 00:58:34]} {[%emt 00:04:41]} 23. Nc4 {[%clk 01:12:39]} {[%emt 00:00:43]}
Qf6 {[%clk 00:56:43]} {[%emt 00:02:18]} 24. Qe3 {[%clk 01:10:42]} {[%emt
00:02:25]} Rc6 {[%clk 00:52:50]} {[%emt 00:04:29]} 25. Bf3 {[%clk 01:10:13]}
{[%emt 00:00:58]} Rxc4 {[%clk 00:51:57]} {[%emt 00:01:26]} 26. Bxa8 {[%clk
01:10:26]} {[%emt 00:00:16]} Rc3 {[%clk 00:50:43]} {[%emt 00:01:45]} 27. Qa7
{[%clk 01:09:54]} {[%emt 00:01:00]} Bd8 {[%clk 00:49:56]} {[%emt 00:01:14]} 28.
Qb8 {[%clk 01:09:09]} {[%emt 00:01:16]} Rd3 {[%clk 00:49:32]} {[%emt 00:00:56]}
29. Rxd3 {[%clk 01:09:09]} {[%emt 00:00:31]} h6 {[%clk 00:49:31]} {[%emt
00:00:33]} 30. Qxd8+ {[%clk 01:09:11]} {[%emt 00:00:26]} 1-0

[Event "Mistrovství Čech mládeže 2023 - HD12"]
[Site "Harrachov, Czech Republic"]
[Date "2023.10.26"]
[Round "7.21"]
[White "Remizov, Artem"]
[Black "Topenčíková, Ellen"]
[Result "1-0"]
[TimeControl "90m + 30s"]
[WhiteElo "1259"]
[BlackElo "1018"]

1. e4 {[%clk 01:30:58]} c6 {[%clk 01:30:51]} {[%emt 00:00:10]} 2. Nf3 {[%clk
01:31:14]} {[%emt 00:00:14]} d5 {[%clk 01:31:08]} {[%emt 00:00:13]} 3. d3
{[%clk 01:29:24]} {[%emt 00:02:20]} dxe4 {[%clk 01:31:24]} {[%emt 00:00:13]} 4.
dxe4 {[%clk 01:29:41]} {[%emt 00:00:13]} Qxd1+ {[%clk 01:31:47]} {[%emt
00:00:07]} 5. Kxd1 {[%clk 01:30:09]} {[%emt 00:00:03]} Bg4 {[%clk 01:31:17]}
{[%emt 00:01:00]} 6. Be2 {[%clk 01:30:19]} {[%emt 00:00:20]} e6 {[%clk
01:31:04]} {[%emt 00:00:42]} 7. h3 {[%clk 01:30:30]} {[%emt 00:00:20]} Bxf3
{[%clk 01:28:32]} {[%emt 00:03:02]} 8. Bxf3 {[%clk 01:30:53]} {[%emt 00:00:07]}
e5 {[%clk 01:28:44]} {[%emt 00:00:18]} 9. Nc3 {[%clk 01:31:16]} {[%emt
00:00:07]} Bc5 {[%clk 01:28:57]} {[%emt 00:00:16]} 10. Be3 {[%clk 01:28:17]}
{[%emt 00:03:29]} Bxe3 {[%clk 01:28:52]} {[%emt 00:00:35]} 11. fxe3 {[%clk
01:28:44]} {[%emt 00:00:04]} Nf6 {[%clk 01:28:12]} {[%emt 00:01:09]} 12. Ke2
{[%clk 01:28:57]} {[%emt 00:00:17]} O-O {[%clk 01:27:36]} {[%emt 00:01:07]} 13.
Rad1 {[%clk 01:29:02]} {[%emt 00:00:25]} Nbd7 {[%clk 01:27:39]} {[%emt
00:00:27]} 14. Rd2 {[%clk 01:28:46]} {[%emt 00:00:47]} Rad8 {[%clk 01:27:32]}
{[%emt 00:00:36]} 15. Rhd1 {[%clk 01:28:49]} {[%emt 00:00:26]} Rfe8 {[%clk
01:27:16]} {[%emt 00:00:45]} 16. Na4 {[%clk 01:27:18]} {[%emt 00:02:02]} Re7
{[%clk 01:26:11]} {[%emt 00:01:35]} 17. Bg4 {[%clk 01:26:59]} {[%emt 00:00:50]}
h5 {[%clk 01:26:29]} {[%emt 00:00:12]} 18. Bxd7 {[%clk 01:26:52]} {[%emt
00:00:36]} Rexd7 {[%clk 01:25:14]} {[%emt 00:01:46]} 19. Nc5 {[%clk 01:26:04]}
{[%emt 00:01:17]} Rxd2+ {[%clk 01:24:19]} {[%emt 00:01:26]} 20. Rxd2 {[%clk
01:26:24]} {[%emt 00:00:10]} Rxd2+ {[%clk 01:24:40]} {[%emt 00:00:08]} 21. Kxd2
{[%clk 01:26:46]} {[%emt 00:00:08]} b6 {[%clk 01:24:47]} {[%emt 00:00:23]} 22.
Nd3 {[%clk 01:26:58]} {[%emt 00:00:18]} Nxe4+ {[%clk 01:25:01]} {[%emt
00:00:16]} 23. Ke2 {[%clk 01:26:57]} {[%emt 00:00:32]} Kf8 {[%clk 01:25:08]}
{[%emt 00:00:23]} 24. Nxe5 {[%clk 01:26:53]} {[%emt 00:00:34]} c5 {[%clk
01:24:49]} {[%emt 00:00:49]} 25. Nc6 {[%clk 01:27:01]} {[%emt 00:00:21]} a5
{[%clk 01:23:36]} {[%emt 00:01:44]} 26. Ne5 {[%clk 01:26:15]} {[%emt 00:01:16]}
Ke7 {[%clk 01:22:01]} {[%emt 00:02:04]} 27. Nc4 {[%clk 01:26:13]} {[%emt
00:00:32]} b5 {[%clk 01:22:14]} {[%emt 00:00:17]} 28. Nxa5 {[%clk 01:26:21]}
{[%emt 00:00:21]} c4 {[%clk 01:19:11]} {[%emt 00:03:35]} 29. Nc6+ {[%clk
01:26:13]} {[%emt 00:00:38]} Kd6 {[%clk 01:17:35]} {[%emt 00:02:06]} 30. Nd4
{[%clk 01:26:03]} {[%emt 00:00:40]} Kc5 {[%clk 01:13:54]} {[%emt 00:04:11]} 31.
Nf3 {[%clk 01:25:21]} {[%emt 00:01:11]} c3 {[%clk 01:12:48]} {[%emt 00:01:36]}
32. b3 {[%clk 01:25:10]} {[%emt 00:00:41]} g5 {[%clk 01:12:38]} {[%emt
00:00:39]} 33. Kd3 {[%clk 01:24:26]} {[%emt 00:01:15]} Kd5 {[%clk 01:11:57]}
{[%emt 00:01:12]} 34. a4 {[%clk 01:22:53]} {[%emt 00:02:02]} b4 {[%clk
01:10:16]} {[%emt 00:02:11]} 35. a5 {[%clk 01:21:40]} {[%emt 00:01:44]} f5
{[%clk 01:09:56]} {[%emt 00:00:50]} 36. Nd4 {[%clk 01:21:01]} {[%emt 00:01:09]}
Nc5+ {[%clk 01:09:53]} {[%emt 00:00:33]} 37. Ke2 {[%clk 01:20:44]} {[%emt
00:00:47]} g4 {[%clk 01:07:00]} {[%emt 00:03:21]} 38. Nxf5 {[%clk 01:20:44]}
{[%emt 00:00:31]} gxh3 {[%clk 01:06:28]} {[%emt 00:01:02]} 39. gxh3 {[%clk
01:21:07]} {[%emt 00:00:08]} Ke5 {[%clk 01:05:13]} {[%emt 00:01:45]} 40. Nd4
{[%clk 01:19:23]} {[%emt 00:02:13]} Kd5 {[%clk 01:02:51]} {[%emt 00:02:52]} 41.
Kf3 {[%clk 01:14:41]} {[%emt 00:05:13]} Ke5 {[%clk 01:02:28]} {[%emt 00:00:52]}
42. Nc6+ {[%clk 01:14:47]} {[%emt 00:00:24]} 1-0